Cogmind - Beta 16 @@@ ROGUE MODE // 2026.01.20 @ 11:52:27 Player: Tubby Watkins Result: Destroyed by G-47 Trooper with Particle Gun Performance ------------- Evolutions (2) 1000 Regions Visited (4) 800 Robots Destroyed (37) 185 Value Destroyed (947) 947 Prototype IDs (3) 60 Alien Tech Used (0) 0 Bonus (0) 0 TOTAL SCORE: 2992 Bonus ------- None Cogmind --------- Core Integrity 0/550 Matter 300/300 Energy 65/100 System Corruption 0% Temperature Cool (18) Movement Core (350) Ox6 Location -8/Materials Parts ------- > --- POWER (1) -------- (None) > --- PROPULSION (3) --- (None) > --- UTILITY (5) ------ Large Storage Unit > --- WEAPON (2) ------- (None) > --- INVENTORY (15) --- Light Ion Engine Light Nuclear Core Aluminum Leg Aluminum Leg Flight Unit Flight Unit Large Storage Unit Medium Matter Pod (96) ECM Suite EM Shotgun Particle Gun Rocket Launcher Makeshift Spear Peak State ------------ > --- POWER ------------ Light Nuclear Core > --- PROPULSION ------- Light Treads Light Treads > --- UTILITY ---------- Large Storage Unit Hardlight Generator Decoy Drone Bay > --- WEAPON ----------- Particle Gun Light Assault Rifle > --- INVENTORY -------- Light Ion Engine Light Nuclear Core Aluminum Leg Aluminum Leg Flight Unit Flight Unit Large Storage Unit Medium Matter Pod ECM Suite EM Shotgun Particle Gun Rocket Launcher Makeshift Spear [Rating: 28] Favorites ----------- Power Light Nuclear Core Engine Ion Engine Power Core Light Nuclear Core Propulsion Light Treads Treads Light Treads Leg Aluminum Leg Utility Large Storage Unit Device Structural Scanner Storage Large Storage Unit Processor Advanced Targeting Computer Protection Light Armor Plating Weapon Light Assault Rifle Energy Gun Small Laser Ballistic Gun Light Assault Rifle Ballistic Cannon Assault Cannon Launcher Grenade Launcher Build | -11 -10 -10 -10 -8 ------- Run | Yrd Mat Min Sub Mat Slots Evolved 4 | . . . . 4 Power . | . . . . . Propulsion 1 | . . . . 1 Utility 3 | . . . . 3 Weapon . | . . . . . Parts Attached 36 | 7 14 2 2 11 Power 5 | 1 2 1 . 1 Engine 3 | 1 1 1 . . Core 2 | . 1 . . 1 Reactor . | . . . . . Propulsion 11 | 2 6 . 2 1 Treads 6 | . 3 . 2 1 Leg 5 | 2 3 . . . Wheel . | . . . . . Hover . | . . . . . Flight . | . . . . . Utility 11 | 2 2 . . 7 Device 4 | 1 1 . . 2 Storage 4 | 1 1 . . 2 Processor 1 | . . . . 1 Hackware . | . . . . . Protection 2 | . . . . 2 Artifact . | . . . . . Weapon 9 | 2 4 1 . 2 Energy Gun 2 | 1 . . . 1 Energy Cannon . | . . . . . Ballistic Gun 4 | 1 3 . . . Ballistic Cannon 1 | . . . . 1 Launcher 2 | . 1 1 . . Special Weapon . | . . . . . Impact Weapon . | . . . . . Slashing Weapon . | . . . . . Piercing Weapon . | . . . . . Special Melee Weapon . | . . . . . Unidentified Prototypes 1 | . . . . 1 Parts Lost 21 | . 1 1 1 18 Power 4 | . 1 1 . 2 Propulsion 5 | . . . 1 4 Utility 6 | . . . . 6 Weapon 6 | . . . . 6 Highest Loss Streak 10 | . 1 1 1 10 To Critical Strikes . | . . . . . Average Backups 10 | 2 8 12 13 11 Power 1 | . 1 1 1 1 Propulsion 4 | 1 3 4 4 3 Utility 1 | . . 1 4 3 Weapon 3 | . 2 4 4 3 Tool/Special . | . . . . . Unused Backups 11 | . 2 . . 9 Power 1 | . . . . 1 Propulsion 6 | . 2 . . 4 Utility 1 | . . . . 1 Weapon 3 | . . . . 3 Tool/Special . | . . . . . Average Slot Usage (%) 91 | . 99 99 87 65 Engine 4 | . 1 2 14 3 Core 8 | . 12 11 . 4 Treads 21 | . 21 28 16 18 Leg 2 | . 6 . . . Device 12 | . 14 14 14 6 Storage 13 | . 14 14 14 11 Energy Gun 2 | . 4 . . 3 Ballistic Gun 23 | . 23 27 27 11 Peak Build Rating 28 | 9 12 12 10 28 Average Rating 10 | 5 10 10 9 14 On Entrance 7 | . 9 10 10 10 Avg Prop Armor Cover (%) . | . . . . . Naked Turns . | . . . . . Heaviest Build 48 | 11 29 29 29 48 Greatest Support 60 | 20 40 40 40 60 Greatest Overweight (x) 2 | . . . 1 2 Average Overweight (x) . | . . . . . Largest Inventory Capacity 15 | 8 15 15 15 15 Average Capacity 13 | 6 12 15 15 15 Most Carried 15 | 4 11 15 15 15 Average Carried 11 | 2 8 13 14 12 Final Capacity 15 | 8 15 15 15 15 Final Carried 15 | 3 11 15 14 13 Class Distribution -------------------- 89% | Mutant 10% | Scavenger-Mutant Dominant Class ---------------- Mutant | -10/Materials Mutant | -10/Mines Mutant | -10/Subcaves Mutant | -8/Materials Resources | -11 -10 -10 -10 -8 ----------- Run | Yrd Mat Min Sub Mat Matter Collected 1152 | 152 524 226 4 246 Remotely . | . . . . . Salvage Created 919 | 29 640 109 4 137 Parts 71 | 3 52 6 1 9 Haulers Intercepted . | . . . . . Recyclers Shooed 1 | . . 1 . . Parts Field Recycled . | . . . . . Retrieved Matter . | . . . . . Parts Self-Destructed 11 | . . . 11 . Prevented . | . . . . . Parts Restored . | . . . . . Kills | -11 -10 -10 -10 -8 ------- Run | Yrd Mat Min Sub Mat Combat Hostiles Destroyed 32 | . 22 5 1 4 Guns 19 | . 14 2 1 2 Cannons 2 | . . . . 2 AOE 11 | . 8 3 . . Classes Destroyed 7 | 1 4 . 1 1 Builder 2 | . 2 . . . Tunneler 1 | 1 . . . . Watcher 2 | . 2 . . . Swarmer 12 | . 9 3 . . Grunt 18 | . 13 2 . 3 Heavy 1 | . . . . 1 Subdweller 1 | . . . 1 . Best Kill Streak 7 | 1 7 3 1 2 Combat Bots Only 6 | . 6 3 1 2 Max Kills in Single Turn 2 | 1 2 1 1 1 Gunslinging . | . . . . . Exploded 2 | . 2 1 . . Melee . | . . . . . Uniques/NPCs Destroyed . | . . . . . Combat | -11 -10 -10 -10 -8 -------- Run | Yrd Mat Min Sub Mat Hostile Shots Fired 311 | . 96 22 3 190 Missed 72 | . 23 8 . 41 Hits 239 | . 73 14 3 149 Projectile 239 | . 73 14 3 149 Critical Strikes 4 | . . . . 4 Damage Taken 3258 | . 823 158 61 2216 Core 717 | . 161 . . 556 Absorbed by Shields 244 | . . . . 244 Redirected to Shielding 108 | . . . . 108 Core Remaining (%) 67 | 100 . . 35 . Volleys Fired 119 | 2 65 14 1 37 Largest 2 | 2 2 2 2 2 Hottest 85 | 60 60 40 40 85 Shots Fired 220 | 4 125 23 2 66 Gun 185 | 4 115 18 2 46 Cannon 20 | . . . . 20 Launcher 15 | . 10 5 . . Special . | . . . . . Kinetic 169 | 2 83 18 2 64 Thermal 36 | 2 32 . . 2 Explosive 15 | . 10 5 . . Electromagnetic . | . . . . . Robot Hit Streak 14 | 3 9 9 4 14 Robot Miss Streak 5 | . 5 4 . 3 Penetration Max . | . . . . . Secondary Targets 2 | . 1 1 . . Max Gunslinging Chain 1 | . 1 1 . . Shots Hit Robots 144 | 3 77 17 1 46 Core Hits 69 | 2 45 8 1 13 Critical Kills . | . . . . . Critical Parts Destroyed . | . . . . . Critical Strikes 1 | . . . . 1 Blast 1 | . . . . 1 Melee Attacks . | . . . . . Impact . | . . . . . Slashing . | . . . . . Piercing . | . . . . . Sneak Attacks . | . . . . . Combat Hostiles . | . . . . . Follow-up Attacks . | . . . . . Damage Inflicted 2315 | 30 1251 411 14 609 Guns 1202 | 30 725 167 14 266 Cannons 343 | . . . . 343 Explosions 770 | . 526 244 . . Melee . | . . . . . Ramming . | . . . . . Kinetic 1299 | 9 513 167 14 596 Thermal 246 | 21 212 . . 13 Explosive 770 | . 526 244 . . Electromagnetic . | . . . . . Impact . | . . . . . Slashing . | . . . . . Piercing . | . . . . . Highest Corruption . | . . . . . Average Corruption . | . . . . . Corruption Purged . | . . . . . Corruption Blocked . | . . . . . Overload Shots . | . . . . . Overflow Damage 42 | . 4 38 . . Projectiles . | . . . . . Explosions 42 | . 4 38 . . Melee . | . . . . . Knockbacks . | . . . . . Impact . | . . . . . Kinetic . | . . . . . Secondary . | . . . . . Self-Inflicted Damage 68 | . 68 . . . Shots 2 | . 2 . . . Rammed . | . . . . . Targets Rammed . | . . . . . Kicked . | . . . . . Crushed . | . . . . . Highest Temperature 90 | 20 74 20 . 90 Average Temperature 21 | 15 23 8 . 21 Received Heat Transfer 1167 | . 303 72 . 792 Siege Activations . | . . . . . Martial Activations . | . . . . . Shielding Activations . | . . . . . Robots Disrupted . | . . . . . Combat Hostiles . | . . . . . Robots Corrupted . | . . . . . Combat Hostiles . | . . . . . Parts Fried . | . . . . . Impact Corruptions . | . . . . . Robots Melted . | . . . . . Combat Hostiles . | . . . . . Parts Melted . | . . . . . Heat Transferred 562 | 50 475 . . 37 Parts Sabotaged . | . . . . . Parts Stolen . | . . . . . Parts Stripped . | . . . . . Power Chain Reactions . | . . . . . Alert | -11 -10 -10 -10 -8 ------- Run | Yrd Mat Min Sub Mat Maximum Alert Level 1 | . 1 . . . Low Security (%) 99 | 100 98 100 . 100 Level 1 . | . 1 . . . Level 2 . | . . . . . Level 3 . | . . . . . Level 4 . | . . . . . Level 5 . | . . . . . High Security . | . . . . . Max Security . | . . . . . Peak Influence 204 | 5 204 88 . 57 Initial 45 | . . 45 . . Average 61 | . 115 16 . 4 Influence Increases 939 | 5 646 138 . 150 Destroy 0b10 Robot/C 620 | . 440 100 . 80 Destroy 0b10 Robot/NC 25 | 5 20 . . . Destroy Leader 124 | . 84 20 . 20 Successful Hack 12 | . 10 . . 2 Destroy Structure 68 | . 47 18 . 3 Lose Combat Pursuer 90 | . 45 . . 45 Influence Decreases 924 | 5 528 256 . 135 Entered New Map 73 | . . 73 . . Time Decay 775 | 5 518 173 . 79 Lost Part 76 | . 10 10 . 56 Squads Dispatched 6 | . 4 . . 2 Investigation 2 | . 2 . . . Extermination . | . . . . . Reinforcement 4 | . 2 . . 2 Assault . | . . . . . Garrison . | . . . . . Intercept . | . . . . . Searches Triggered . | . . . . . Construction Impeded . | . . . . . Haulers Reinforced . | . . . . . Active Scanning Responses . | . . . . . Cargo Convoy Interrupts . | . . . . . Stealth | -11 -10 -10 -10 -8 --------- Run | Yrd Mat Min Sub Mat Distress Signals 4 | . 3 . . 1 Communications Jammed . | . . . . . Distress Signals . | . . . . . Times Spotted 54 | . 33 5 1 15 Peak Tracking Total 7 | . 7 3 1 7 Tactical Retreats 5 | . 2 . . 3 Traps | -11 -10 -10 -10 -8 ------- Run | Yrd Mat Min Sub Mat Traps Triggered 2 | . 2 . . . Indirectly . | . . . . . Trap Hack Attempts . | . . . . . Triggered . | . . . . . Disarmed . | . . . . . Reprogrammed . | . . . . . Reused . | . . . . . Traps Extracted . | . . . . . Installed . | . . . . . Triggered . | . . . . . Machines | -11 -10 -10 -10 -8 ---------- Run | Yrd Mat Min Sub Mat Machines Disabled . | . . . . . Max in Single Turn . | . . . . . Machines Repaired . | . . . . . Machines Dismantled . | . . . . . Machines Sabotaged . | . . . . . Overloaded Fab Kills . | . . . . . Hacking | -11 -10 -10 -10 -8 --------- Run | Yrd Mat Min Sub Mat Machines Accessed 8 | . 4 1 1 2 Terminals 5 | . 4 . . 1 Fabricators . | . . . . . Repair Stations . | . . . . . Recycling Units . | . . . . . Scanalyzers 1 | . . . . 1 Garrison Access . | . . . . . Total Hacks 19 | . 6 1 3 9 Successful 14 | . 5 1 3 5 Failed 5 | . 1 . . 4 Catastrophic 2 | . 1 . . 1 Database Lockouts . | . . . . . Manual 2 | . 1 . . 1 Terminals 7 | . 6 . . 1 Fabricators . | . . . . . Repair Stations . | . . . . . Recycling Units . | . . . . . Scanalyzers 8 | . . . . 8 Garrison Access . | . . . . . Terminal Hacks 9 | . 5 1 3 . Record 6 | . 3 . 3 . Prototype ID Bank 1 | . 1 . . . Open Door 1 | . . 1 . . Hauler Manifests 1 | . 1 . . . Fabricator Hacks . | . . . . . Repair Station Hacks . | . . . . . Recycling Unit Hacks . | . . . . . Scanalyzer 5 | . . . . 5 Insert Component 1 | . . . . 1 Analyze 1 | . . . . 1 Retrieve Study 3 | . . . . 3 Garrison Access Hacks . | . . . . . Unauthorized Hacks . | . . . . . Terminals . | . . . . . Fabricators . | . . . . . Repair Stations . | . . . . . Recycling Units . | . . . . . Scanalyzers . | . . . . . Garrison Access . | . . . . . Data Cores Recovered . | . . . . . Used . | . . . . . Hacking Detections 3 | . 1 . . 2 Full Trace Events 1 | . 1 . . . Feedback Events . | . . . . . Feedback Blocked . | . . . . . Robot Schematics Acquired . | . . . . . Robots Built . | . . . . . Authchips . | . . . . . Time . | . . . . . Total Robot Build Rating . | . . . . . Part Schematics Acquired 1 | . . . . 1 Parts Built . | . . . . . Authchips . | . . . . . Time . | . . . . . Total Part Build Rating . | . . . . . Part Studies Acquired 3 | . . . . 3 Parts Repaired . | . . . . . Time . | . . . . . Parts Recycled . | . . . . . Recycled Matter . | . . . . . Retrieved Matter . | . . . . . Retrieved Components . | . . . . . Parts Scanalyzed 1 | . . . . 1 Part Schematics Acquired 1 | . . . . 1 Parts Damaged . | . . . . . Bothacking | -11 -10 -10 -10 -8 ------------ Run | Yrd Mat Min Sub Mat Used RIF Installer . | . . . . . Robots Hacked . | . . . . . Non-combat . | . . . . . Combat . | . . . . . Robot Hacks Applied . | . . . . . Relay Couplers Released . | . . . . . Fabnet Peak Effective % . | . . . . . Robots Rewired . | . . . . . Allies Hacked . | . . . . . Hacks Repelled . | . . . . . Allies | -11 -10 -10 -10 -8 -------- Run | Yrd Mat Min Sub Mat Total Allies . | . . . . . Largest Group . | . . . . . Highest-Rated Group . | . . . . . Highest-Rated Ally . | . . . . . Total Orders . | . . . . . Ally Attacks . | . . . . . Total Damage . | . . . . . Kills . | . . . . . Allies Corrupted . | . . . . . Allies Melted . | . . . . . Intel | -11 -10 -10 -10 -8 ------- Run | Yrd Mat Min Sub Mat Active Infowar (turns) 3349 | 25 1479 786 855 204 Terrain 890 | 25 865 . . . Structural 2459 | . 614 786 855 204 Robot Analysis Total . | . . . . . Derelict Logs Recovered 1 | . . 1 . . Drone Launches 2 | . . . . 2 Drone Recoveries . | . . . . . Exploration | -11 -10 -10 -10 -8 ------------- Run | Yrd Mat Min Sub Mat Turns Passed 3889 | 97 1479 786 855 672 Spaces Moved 2006 | 66 806 450 390 294 Core 2 | 2 . . . . Treads 1779 | . 645 450 390 294 Legs 225 | 64 161 . . . Wheels . | . . . . . Hover . | . . . . . Flight . | . . . . . Fastest Speed 50 | 50 120 160 160 160 Average Speed 168 | 117 152 160 217 169 Slowest Speed 240 | 120 160 160 240 240 Overloaded Moves . | . . . . . Propulsion Burnouts . | . . . . . Robots Hopped . | . . . . . Potential Cave-ins . | . . . . . Cave-ins Triggered . | . . . . . Exploration Rate (%) 47 | 5 97 86 21 28 Regions Visited 4 Branch Regions 2 Pre-discovered Areas 1 | . . . 1 . Known Exits Taken . | . . . . . Unknown Exits Taken 4 | 1 1 1 1 . Scrap Searched 1 | . . 1 . . Spaces Dug . | . . . . . Terrain Destroyed 83 | . 50 30 . 3 Melee . | . . . . . Projectile 3 | . . . . 3 AOE 80 | . 50 30 . . Terrain Rammed . | . . . . . Walls Destroyed . | . . . . . Machines Disabled . | . . . . . Actions | -11 -10 -10 -10 -8 --------- Run | Yrd Mat Min Sub Mat Total 2318 | 78 944 495 395 406 Wait 115 | . 43 18 1 53 Move 2002 | 65 805 449 389 294 Hop . | . . . . . Pick Up 24 | 4 7 7 . 6 Fast Attach 12 | 6 . . . 6 Attach 12 | 1 1 1 2 7 Detach 2 | . . . 1 1 Swap 22 | . 16 3 1 2 Drop 10 | . 7 3 . . Fire 119 | 2 65 14 1 37 Melee . | . . . . . Ram . | . . . . . Kick . | . . . . . Crush . | . . . . . Escape Stasis . | . . . . . Rewire . | . . . . . Trap . | . . . . . Miscellaneous . | . . . . . Route ------- -11/Scrapyard -10/Materials (discovered 5 exits: [*Mat x3] / *Min / *Sub) -10/Mines (discovered 3 exits: [*Mat x2] / *Sub) -10/Subcaves (discovered 2 exits: *Mat / Rec) -8/Materials (discovered 1 exit: [*Fac]) History --------- Turn | Location | Event 5 | -11/Scrapyard | Discovered new exit (range 15) 98 | -11/Scrapyard | Entered Materials 320 | -10/Materials | Discovered new exit (range 11) 347 | -10/Materials | Discovered new exit (range 16) 567 | -10/Materials | Discovered new exit (range 5) 726 | -10/Materials | Discovered new exit (range 8) 838 | -10/Materials | Discovered new exit (range 5) 1098 | -10/Materials | Build established: Mutant 1137 | -10/Materials | Core integrity fell below 50% 1577 | -10/Materials | Entered Mines 1592 | -10/Mines | Learned Materials trap positions 1697 | -10/Mines | Received a Rocket Launcher from a helpful Derelict 1803 | -10/Mines | A weapon hastily lodged in a ceiling crevice suddenly fell to the ground 1990 | -10/Mines | Found the Drone Emporium 1999 | -10/Mines | Found Prototype Device 2080 | -10/Mines | Discovered new exit (range 10) 2171 | -10/Mines | Discovered new exit (range 10) 2345 | -10/Mines | Discovered new exit (range 7) 2363 | -10/Mines | Entered Subcaves 2519 | -10/Subcaves | A swath of the cavern ceiling suddenly collapsed 2935 | -10/Subcaves | Learned location of Zion (-7) 2935 | -10/Subcaves | Met a Zionite searching for "candidates" 3130 | -10/Subcaves | Shifting Twisted Machinery released Sub. Monowheel 3148 | -10/Subcaves | Visited Clippyterm 3155 | -10/Subcaves | Identified exit to Recycling 3181 | -10/Subcaves | Discovered new exit (range 15) 3218 | -10/Subcaves | Entered Materials 3218 | -8/Materials | Evolved 4 slots: Propulsion x1, Utility x3 3219 | -8/Materials | Loaded intel: 18 trap records 3511 | -8/Materials | Lost 10 parts (1p2n4u3w) 3734 | -8/Materials | Identified Decoy Drone Bay 3745 | -8/Materials | Discovered new exit (range 5) 3880 | -8/Materials | Core integrity fell below 50% 3887 | -8/Materials | Core integrity fell below 20% 3890 | -8/Materials | Destroyed by G-47 Trooper with Particle Gun Last Messages --------------- 03836_ Penetrated by Slug. 03850_ Critical hit (Burn: +26). 03851_ K-01 Serf collects debris. 03852_ Lgt. Treads+ destroyed. 03857_ Lgt. Nuclear Core destroyed. 03858_ Slug penetrates Wall. 03862_ Critical hit (Burn: +27). 03864_ Slug penetrates Wall. 03868_ Lgt. Assault Rifle destroyed. 03870_ Slug penetrates Wall. 03872_ Critical hit (Burn: +28). 03872_ Decoy Drone Bay destroyed. 03874_ Y-45 Defender suffers critical hit (Burn). 03874_ Lgt. Treads+ destroyed. 03875_ Slug penetrates Wall. 03877_ Particle Gun destroyed. 03879_ Penetrated by Slug. 03880_ Hardlight Generator destroyed. 03882_ Slug penetrates Wall. 03885_ Penetrated by Slug. Map ----- +----------------------------------------------------+ | ??????????# #######??#? | | ??????????# ^^ # """ #? | | ??????????# !!! ^ # """"" #? | | ??????????# !! "Y" # """"" #? | | ????????? !! """ # """"" #? | | ????????? + """ #? | | ????????? # #? | | ??????????##+#### #"T"## ## #? | | ????????????????# #"""?# ## #? | | ????????????????#?###??# ## #? | | ???????????????????????# ###########? | | ???????????????????????# #??????????? | | ???????????????????????# #??????????? | | ??????????????????######/###????????? | | ??????????????????# #????????? | | ??????????????????# """ #????????? | | ??????????????????# """ !!!#????????? | | ??????????????????# """ !]!#????????? | | ??????????????????# !]!#????????? | | ??????????????????# """ #????????? | | ??????????????????# """ #????????? | | ??????????????????# """ #????????? | | ??????????????????# #########? | | ???????????# #######/##### #? | | ???????????# Y g g # """ #? | | ???????????# Y @ # """ #? | | ???????????# ##+####### + """ #? | | ????????????????# ???????# h# #? | | ?????????????????????????# # #? | | ?????????????????????????# ########? | | ?????????????????????????# #???????? | | ?????????????????????????# #???????? | | ?????????????????????????# #???????? | | ?????????????????????????# #???????? | | ?????????????????????????#% #???????? | | ?????????????????????????# #???????? | | ?????????????????????????+ +???????? | | ?????????????????????????# #???????? | | ?????????????????????????# ????????? | | ??????????????????????????##????????? | | ????????????????????????????????????? | | ????????????????????????????????????? | | ????????????????????????????????????? | | ????????????????????????????????????? | | ????????????????????????????????????? | | ????????????????????????????????????? | | ????????????????????????????????????? | | ????????????????????????????????????? | | ????????????????????????????????????? | | ????????????????????????????????????? | +----------------------------------------------------+ Best States ------------- Heat Dissipation 31 Energy Generation 14 Energy Capacity 250 Matter Stores 350 Matter Capacity 400 Sight Range 16 Terrain Scan Range 16 Terrain Scan Density 10 Armor Coverage 150 Propulsion Shielding 66 Evasion (%) 55 Targeting Accuracy 8 Recoil Reduction 3 Item Schematics ----------------- Flight Unit | -8/Materials | Scanalyzed Robot Schematics ------------------ None Fabricated ------------ Nothing Repaired ---------- Nothing Studied --------- Flight Unit | -8/Materials | Hacked Rocket Launcher | -8/Materials | Hacked Lgt. Treads | -8/Materials | Hacked Alien Tech Used ----------------- None Achievements -------------- Item+ Challenges ------------ None Game ------ Seed ThiefRocketCloak Manual? 0 Play Time 00:33:34 Cumulative 8.5 hours Start 2026.01.20 @ 11:18:55 End 2026.01.20 @ 11:52:27 Sessions 1 Manual Loads 0 Difficulty Rogue Special Mode None Game No. 14 Rogue 14 Adventurer 0 Explorer 0 Win Type - Total 0 Types 0/0/0/0/0/0/0/0/0/0 Lore% 7 Gallery% 11 Achievement% 11 Wizard Run 0 Options --------- Layout 0 ASCII 1 Keyboard 1 Movement Vi Keybinds 0 Fullscreen 1 Font 20/X11 Map View 66x50 Zoom Use 0% Tactical HUD 1 Map Filters NONE Filters NONE Steam 1 RUN: 257f01de-2239-4607-8f69-8a374dd8ca2c